bitfinex/quotes_SOLUSD_20260224
["timestamp","ask_amount","ask_price","bid_price","bid_amount"]
[1771936443457,0.47888117,77.059,77.041,0.2]
[1771936444254,0.47888117,77.059,77.051,0.2]
[1771936444466,0.47888117,77.057,77.041,0.2]
[1771936445158,0.47888117,77.071,77.061,0.2]
[1771936445356,0.47888117,77.069,77.047,0.45969634]
[1771936447854,51.88053963,77.101,77.041,0.2]
[1771936447855,0.47888117,77.073,77.048,12.97892223]
[1771936448052,0.47888117,77.079,77.051,0.45969634]
[1771936448260,0.47888117,77.069,77.041,0.65969634]
[1771936449841,0.47888117,77.067,77.043,0.45969634]
[1771936450052,0.47888117,77.068,77.043,0.45969634]
[1771936451859,0.47888117,77.066,77.041,0.2]
[1771936452454,0.47888117,77.059,77.03,0.45969634]
[1771936453548,0.47888117,77.059,77.03,13.44149245]
[1771936453760,0.47888117,77.059,77.035,0.45969634]
[1771936454360,0.47888117,77.057,77.035,0.45969634]
[1771936456659,0.47888117,77.055,77.035,0.45969634]
[1771936458261,0.47888117,77.053,77.035,0.45969634]
[1771936469383,0.49196323,77.051,77.035,0.45969634]
[1771936469583,0.49196323,77.051,77.018,0.46112759]
[1771936469765,12.97824845,77.052,77.018,0.46112759]
[1771936469766,0.49196323,77.049,77.018,0.46112759]
[1771936470564,0.49196323,77.049,77.021,0.46112759]
[1771936471670,0.49196323,77.049,77.023,0.46112759]
[1771936472665,0.49196323,77.049,77.025,0.46112759]
[1771936477282,0.49196323,77.049,77.027,0.46112759]
[1771936477466,5.18342307,77.05,77.027,0.46112759]
[1771936477467,0.49196323,77.047,77.027,0.46112759]
[1771936479887,0.49196323,77.045,77.011,12.98515796]
[1771936481980,0.49196323,77.043,77.014,0.46112759]
[1771936483488,12.97993302,77.042,77.021,0.46112759]
[1771936484885,0.49196323,77.042,77.021,0.46112759]
[1771936487294,0.49196323,77.04,77.021,0.46112759]
[1771936487873,0.49196323,77.039,77.008,0.46112759]
[1771936488489,0.49196323,77.039,77.003,0.46112759]
[1771936488794,0.49196323,77.019,76.997,0.46112759]
[1771936489182,45.43035526,77.041,76.988,0.46112759]
[1771936489183,0.49196323,77.017,76.988,0.46112759]
[1771936489689,0.49196323,77.009,76.988,0.46112759]
[1771936489893,0.49196323,77.009,76.98,0.2]
[1771936489894,0.49196323,77.009,76.983,0.46112759]
[1771936490200,0.49196323,77.009,76.98,0.2]
[1771936490201,0.49196323,76.999,76.98,0.2]
[1771936490378,0.49196323,76.999,76.97,0.2]
[1771936491288,5.18342307,77.0,76.97,0.2]
[1771936491479,0.49196323,77.009,76.98,5.18342307]
[1771936491681,45.44215214,77.021,76.98,5.18342307]
[1771936491682,0.49196323,77.015,76.98,5.18342307]
[1771936492000,0.49196323,77.015,76.99,5.18342307]
[1771936492498,0.49196323,77.015,76.991,0.27637759]
[1771936494101,0.49196323,77.009,76.974,0.27637759]
[1771936494606,0.49196323,77.009,76.976,0.27637759]
[1771936495806,0.49196323,77.009,76.981,0.27637759]
[1771936496108,12.98566382,77.008,76.981,0.27637759]
[1771936496312,0.46162074,77.007,76.981,0.27637759]
[1771936499095,0.46162074,77.005,76.981,0.12574076]
[1771936502313,5.36086188,77.053,76.991,0.49562482]
[1771936502513,5.18342307,77.05,77.011,0.49562482]
[1771936502724,5.18342307,77.04,77.011,0.49562482]
[1771936503013,5.18342307,77.03,77.001,0.49562482]
[1771936503222,5.18342307,77.04,77.001,0.49562482]
[1771936503715,5.18342307,77.04,77.01,5.18342307]
[1771936503889,5.18342307,77.04,77.011,0.49562482]
[1771936504401,0.46162074,77.037,77.011,0.49562482]
[1771936505547,12.98094397,77.036,77.011,0.49562482]
[1771936506416,12.98094397,77.036,77.012,0.49562482]
[1771936506711,12.98094397,77.036,77.021,0.49562482]
[1771936507498,0.46162074,77.054,77.021,0.49562482]
[1771936507699,0.46162074,77.079,77.041,0.49562482]
[1771936508216,0.46162074,77.072,77.041,0.49562482]
[1771936509498,0.46162074,77.07,77.043,0.49562482]
[1771936509705,0.46162074,77.069,77.043,0.49562482]
[1771936510923,0.46162074,77.067,77.043,0.49562482]
[1771936513820,0.46162074,77.065,77.043,0.49562482]
[1771936514201,0.46162074,77.059,77.038,12.98046128]
[1771936514402,12.97589079,77.066,77.02,5.18342307]
[1771936514403,0.46162074,77.049,77.03,12.981908]
[1771936516402,0.46162074,77.049,77.027,0.09173668]
[1771936517621,0.46162074,77.047,77.027,0.09173668]
[1771936545032,5.18359994,77.06,77.031,0.49326039]
[1771936545238,5.18359994,77.07,77.041,0.49326039]
[1771936545624,12.97488825,77.072,77.041,0.49326039]
[1771936545923,12.9737023,77.079,77.041,0.49326039]
[1771936547127,12.9737023,77.079,77.04,5.18359994]
[1771936547128,0.47444462,77.076,77.043,0.49326039]
[1771936548950,0.47444462,77.074,77.045,0.49326039]
[1771936551548,0.47444462,77.074,77.047,0.49326039]
[1771936551746,0.47444462,77.072,77.047,0.49326039]
[1771936552328,0.47444462,77.079,77.051,0.49326039]
[1771936553546,0.47444462,77.078,77.051,12.97832241]
[1771936553744,0.47444462,77.078,77.052,0.49326039]
[1771936554743,0.47444462,77.076,77.052,0.49326039]
[1771936555550,0.47444462,77.076,77.05,5.18359994]
[1771936555551,0.47444462,77.076,77.054,0.48424918]
[1771936557445,0.48827748,77.074,77.054,0.48424918]
[1771936558258,0.48827748,77.069,77.046,12.97913016]
[1771936558636,0.48827748,77.069,77.034,0.48424918]
[1771936559853,0.48827748,77.059,77.035,12.98111248]
[1771936560159,0.48827748,77.059,77.031,12.98178158]
[1771936560340,0.48827748,77.049,77.021,0.48424918]
[1771936562237,0.48827748,77.065,77.031,0.48424918]
[1771936562439,0.48827748,77.065,77.041,0.48424918]
[1771936562955,0.48827748,77.063,77.041,0.48424918]
[1771936565957,0.48827748,77.061,77.011,3.69383402]
[1771936566160,0.48827748,77.061,77.03,5.18359994]
[1771936566362,0.48827748,77.059,77.02,5.18359994]
[1771936567963,0.48827748,77.059,77.022,0.08193212]
[1771936569769,0.48827748,77.059,77.031,0.08193212]
[1771936571252,0.48827748,77.057,77.031,0.08193212]
[1771936571761,0.48827748,77.057,77.032,0.08193212]
[1771936574176,0.48827748,77.055,77.032,0.08193212]
[1771936574768,0.48827748,77.055,77.02,5.18359994]
[1771936575169,0.48827748,77.055,77.021,45.44215214]
[1771936576551,0.5,77.053,77.021,45.44215214]
[1771936581071,0.5,77.051,77.021,45.44215214]
[1771936581773,0.5,77.051,77.021,12.98347204]
[1771936586165,32.44405454,77.056,77.021,12.98347204]
[1771936586166,0.5,77.049,77.021,12.98347204]
[1771936586975,0.5,77.049,77.021,45.44215214]
[1771936589977,0.5,77.047,77.021,45.44215214]
[1771936595782,12.97925914,77.046,77.021,12.98347204]
[1771936595969,0.5,77.029,76.98,5.18315444]
[1771936596163,0.5,77.009,76.98,5.18315444]
[1771936596475,0.5,77.009,76.971,45.47167114]
[1771936598185,0.5,77.009,76.98,5.18315444]
[1771936599470,0.5,77.009,76.971,45.47167114]
[1771936603594,0.5,76.999,76.971,45.47167114]
[1771936604080,0.5,76.997,76.97,0.2]
[1771936604273,0.5,76.994,76.97,0.2]
[1771936604479,0.5,76.994,76.97,18.37516844]
[1771936605075,0.5,76.994,76.97,0.2]
[1771936606894,0.5,76.993,76.971,12.99190604]
[1771936609393,0.5,76.991,76.97,0.2]
[1771936611294,0.5,76.989,76.97,0.2]
[1771936611495,0.5,76.979,76.96,0.2]
[1771936611699,0.5,76.969,76.94,32.69259469]
[1771936611906,0.5,76.969,76.947,12.99580391]
[1771936613492,5.18315444,76.96,76.943,12.99657558]
[1771936613692,0.5,76.959,76.943,12.99657558]
[1771936613999,0.5,76.959,76.94,0.2]
[1771936614595,0.5,76.959,76.949,12.99561085]
[1771936615373,0.5,76.959,76.945,12.99614355]
[1771936615596,0.5,76.959,76.94,0.2]
[1771936615790,5.18315444,76.96,76.94,0.2]
[1771936615791,0.5,76.957,76.94,0.2]
[1771936617092,0.5,76.962,76.941,12.9969717]
[1771936617295,51.92926749,77.028,76.941,45.48940096]
[1771936617296,0.5,76.974,76.941,45.48940096]
[1771936617890,0.5,76.969,76.941,45.48940096]
[1771936620708,0.5,76.984,76.95,5.18315444]
[1771936620878,0.5,76.984,76.96,5.18315444]
[1771936621080,0.5,76.984,76.941,45.48940096]
[1771936621300,0.5,76.984,76.95,5.18315444]
[1771936621782,0.5,76.989,76.96,5.18315444]
[1771936622379,0.5,76.989,76.942,0.28432314]
[1771936622588,0.5,76.989,76.96,5.18315444]
[1771936623998,0.5,76.988,76.961,12.99359415]
[1771936624203,0.5,76.988,76.951,12.99528271]
[1771936624516,0.5,76.988,76.951,45.48348949]
[1771936625684,0.5,76.988,76.96,5.18315444]
[1771936626719,0.5,76.988,76.961,12.99359415]
[1771936631205,0.5,76.986,76.961,12.99359415]
[1771936631999,0.5,76.986,76.961,45.47757954]
[1771936632985,0.5,76.984,76.961,12.99359415]
[1771936633191,0.5,76.984,76.96,5.18315444]
[1771936635307,0.5,76.982,76.95,5.18315444]
[1771936635493,0.5,76.979,76.95,5.18315444]
[1771936639106,0.5,76.977,76.95,5.18315444]
[1771936639320,0.5,76.977,76.941,12.9969717]
[1771936639321,0.5,76.969,76.941,12.9969717]
[1771936640910,0.5,76.959,76.94,0.2]
[1771936643111,0.5,76.959,76.94,13.19703184]
[1771936646944,0.5,76.958,76.94,0.2]
[1771936649537,0.5,76.958,76.941,12.9969717]
[1771936651513,0.5,76.958,76.94,0.2]
[1771936652937,0.5,76.958,76.941,12.9969717]
[1771936653319,0.5,76.958,76.94,0.2]
[1771936653826,0.5,76.958,76.94,13.19701938]
[1771936655228,0.5,76.958,76.94,0.2]
[1771936655840,0.5,76.958,76.941,12.9969717]
[1771936659629,0.28432314,76.984,76.951,0.47885252]
[1771936659831,5.19573335,76.98,76.951,0.47885252]
[1771936661644,0.45406408,76.977,76.952,0.47885252]
[1771936661844,0.45406408,76.977,76.946,0.47885252]
[1771936662148,0.45406408,76.969,76.948,0.47885252]
[1771936663132,0.45406408,76.969,76.95,0.47885252]
[1771936665148,0.45406408,76.974,76.95,0.47885252]
[1771936668956,13.44563255,76.973,76.952,0.47885252]
[1771936669347,0.45406408,76.972,76.952,0.47885252]
[1771936673333,0.45406408,76.969,76.952,0.47885252]
[1771936674354,0.45406408,76.969,76.948,0.47885252]
[1771936675857,0.48895582,76.967,76.94,0.2]
[1771936676050,0.48895582,76.959,76.94,13.1970855]
[1771936680849,0.48895582,76.959,76.94,0.2]
[1771936681059,0.48895582,76.957,76.94,0.2]
[1771936685655,0.48895582,76.957,76.94,13.1971181]
[1771936687875,0.14216157,76.984,76.885,44.40086188]
[1771936688186,103.9,77.049,76.902,0.49002587]
[1771936688187,0.48895582,76.927,76.902,0.49002587]
[1771936688367,0.48895582,76.939,76.902,0.49002587]
[1771936688553,0.48895582,76.944,76.911,0.49002587]
[1771936689154,0.48895582,76.939,76.911,0.49002587]
[1771936693197,0.48895582,76.939,76.913,0.49002587]
[1771936694266,0.48895582,76.937,76.913,0.49002587]
[1771936696084,0.48895582,76.937,76.915,0.49002587]
[1771936696458,5.19573335,76.93,76.909,0.49002587]
[1771936696667,0.48895582,76.929,76.909,0.49002587]
[1771936697881,0.48895582,76.928,76.909,0.49002587]
[1771936698082,0.48895582,76.928,76.911,0.49002587]
[1771936707888,103.9,76.964,76.913,0.45842631]
[1771936707889,5.19573335,76.94,76.913,0.45842631]
[1771936708089,0.47444763,76.959,76.921,0.45842631]
[1771936708594,0.47444763,76.949,76.921,0.45842631]
[1771936709471,0.47444763,76.949,76.922,13.000182]
[1771936709802,0.47444763,76.949,76.923,0.45842631]
[1771936709982,0.47444763,76.948,76.923,0.45842631]
[1771936713196,0.47444763,76.948,76.925,0.45842631]
[1771936716682,0.47444763,76.948,76.927,0.45842631]
[1771936717192,12.99462806,76.955,76.93,5.19748649]
[1771936717193,0.47444763,76.952,76.93,5.19748649]
[1771936717399,0.47444763,76.952,76.931,0.45842631]
[1771936717698,0.47444763,76.949,76.926,12.99950601]
[1771936718198,0.47444763,76.949,76.926,13.45793232]
[1771936718400,0.47444763,76.949,76.927,0.45842631]
[1771936718595,0.47444763,76.949,76.928,12.99916805]
[1771936722099,0.47444763,76.949,76.929,0.45842631]
[1771936723901,0.47444763,76.947,76.914,0.45842631]
[1771936724106,12.99578936,76.948,76.909,0.45842631]
[1771936724107,0.47444763,76.939,76.909,0.45842631]
[1771936724289,0.47444763,76.929,76.904,0.45842631]
[1771936727403,0.47444763,76.928,76.905,13.46148202]
[1771936728112,0.47444763,76.928,76.906,0.45842631]
[1771936729525,0.47444763,76.929,76.908,0.45842631]
[1771936731812,0.47444763,76.927,76.908,0.45842631]
[1771936735515,0.47444763,76.927,76.91,0.48843563]
[1771936736293,0.46309213,76.926,76.901,13.00373207]
[1771936736615,0.46309213,76.919,76.9,0.2]
[1771936736792,12.99939922,76.927,76.89,0.2]
[1771936736793,0.46309213,76.909,76.89,0.2]
[1771936738610,0.46309213,76.907,76.89,0.2]
[1771936739304,0.46309213,76.899,76.89,0.2]
[1771936739899,0.46309213,76.899,76.88,0.2]
[1771936740415,0.46309213,76.889,76.88,0.2]
[1771936741006,0.46309213,76.888,76.87,0.2]
[1771936741196,5.19748649,76.88,76.86,0.2]
[1771936741396,0.46309213,76.869,76.843,0.48843563]
[1771936741604,0.46309213,76.859,76.836,0.48843563]
[1771936742635,0.46309213,76.878,76.841,0.48843563]
[1771936743126,0.46309213,76.869,76.841,0.48843563]
[1771936744197,0.46309213,76.874,76.841,0.48843563]
[1771936745012,0.46309213,76.869,76.843,0.48843563]
[1771936747294,32.51482676,76.888,76.845,0.48843563]
[1771936747295,13.00785642,76.877,76.845,0.48843563]
[1771936747508,0.46309213,76.882,76.851,0.48843563]
[1771936747717,5.19748649,76.89,76.861,0.48843563]
[1771936747913,5.19748649,76.9,76.861,0.48843563]
[1771936748213,5.19748649,76.87,76.844,13.01337775]
[1771936748404,5.19748649,76.88,76.845,0.48843563]
[1771936749697,0.46309213,76.878,76.847,0.48843563]
[1771936750216,0.46309213,76.859,76.834,0.48843563]
[1771936750421,0.46309213,76.865,76.834,0.48843563]
[1771936753915,0.46309213,76.865,76.836,0.48843563]
[1771936756011,0.46309213,76.865,76.838,0.48843563]
[1771936759114,68.72128444,76.891,76.83,5.39748649]
[1771936759115,0.46309213,76.877,76.85,5.19748649]
[1771936759315,5.19748649,76.88,76.851,0.48843563]
[1771936760030,5.66057862,76.88,76.851,0.48843563]
[1771936760441,13.00769779,76.878,76.853,0.48843563]
[1771936761536,5.19748649,76.86,76.83,0.2]
[1771936761830,0.46309213,76.855,76.832,0.48843563]
[1771936762515,0.46309213,76.849,76.832,0.48843563]
[1771936762827,0.46309213,76.849,76.83,0.2]
[1771936763017,0.46309213,76.849,76.831,13.01557964]
[1771936763226,0.46309213,76.849,76.832,0.48843563]
[1771936764513,5.19748649,76.85,76.834,0.46332543]
[1771936764711,5.19748649,76.85,76.82,5.39748649]
[1771936764713,0.46837338,76.848,76.8,0.2]
[1771936765020,0.4253435,76.826,76.801,0.46332543]
[1771936766114,0.4253435,76.819,76.8,0.2]
[1771936766820,0.4253435,76.817,76.8,0.2]
[1771936768022,0.4253435,76.815,76.8,0.2]
[1771936768919,5.19748649,76.81,76.794,0.1939175]
[1771936769119,0.49456474,76.809,76.79,0.2]
[1771936769542,0.49456474,76.837,76.791,13.02235939]
[1771936769727,0.49456474,76.829,76.791,13.02235939]
[1771936769923,0.49456474,76.827,76.791,13.02235939]
[1771936770842,0.49456474,76.827,76.792,0.45700963]
[1771936771233,5.21496095,76.82,76.792,0.45700963]
[1771936771637,0.49456474,76.827,76.792,0.45700963]
[1771936771841,0.49456474,76.819,76.792,0.45700963]
[1771936772146,13.51234703,76.818,76.792,0.45700963]
[1771936772331,13.51234703,76.818,76.794,0.45700963]
[1771936772841,0.49456474,76.829,76.794,0.45700963]
[1771936773054,0.49456474,76.834,76.794,0.45700963]
[1771936773343,5.21496095,76.83,76.801,0.45700963]
[1771936773545,0.49456474,76.829,76.801,0.45700963]
[1771936773842,0.49456474,76.829,76.801,0.17634338]
[1771936774944,5.21496095,76.83,76.801,0.17634338]
[1771936775326,5.21496095,76.84,76.81,5.21496095]
[1771936775521,32.52871712,76.856,76.81,5.21496095]
[1771936775522,0.49456474,76.848,76.81,5.21496095]
[1771936775782,0.49456474,76.848,76.811,0.45700963]
[1771936776326,0.49456474,76.848,76.813,0.45700963]
[1771936778843,0.49456474,76.848,76.791,65.11179695]
[1771936778844,0.49456474,76.848,76.821,0.45700963]
[1771936780546,0.49456474,76.846,76.821,0.45700963]
[1771936781049,0.49456474,76.846,76.823,0.45700963]
[1771936781247,0.49456474,76.839,76.811,0.45700963]
[1771936781437,0.49456474,76.839,76.812,0.45700963]
[1771936784045,0.49456474,76.829,76.802,0.45700963]
[1771936784252,0.49456474,76.829,76.804,0.45700963]
[1771936786738,0.49456474,76.829,76.806,0.45700963]
[1771936787345,0.14216157,76.828,76.79,0.2]
[1771936787547,0.49456474,76.799,76.78,0.2]
[1771936787851,0.49456474,76.799,76.738,0.235942]
[1771936787852,0.49456474,76.779,76.749,6.79983503]
[1771936788054,0.46910188,76.759,76.738,0.235942]
[1771936788560,0.46910188,76.779,76.739,0.45700963]
[1771936788738,13.49519314,76.769,76.741,0.45700963]
[1771936789060,5.21496095,76.76,76.741,0.45700963]
[1771936789441,5.21496095,76.76,76.74,0.45700963]
[1771936790540,0.46910188,76.759,76.739,13.03118362]
[1771936790736,0.46910188,76.758,76.738,0.235942]
[1771936790937,0.46910188,76.758,76.739,13.03118362]
[1771936791352,0.46910188,76.758,76.738,0.235942]
[1771936791353,13.49705987,76.758,76.738,0.235942]
[1771936791558,5.21496095,76.75,76.738,0.235942]
[1771936792853,5.21496095,76.75,76.738,0.69295163]
[1771936793538,5.21496095,76.76,76.739,13.03118362]
[1771936793743,5.21496095,76.76,76.74,0.45700963]
[1771936794460,5.21496095,76.75,76.738,0.235942]
[1771936795358,5.21496095,76.75,76.739,13.03118362]
[1771936795561,5.21496095,76.75,76.738,0.235942]
[1771936797448,0.46410308,76.749,76.725,0.4798591]
[1771936797648,5.21496095,76.74,76.725,0.4798591]
[1771936797966,5.21496095,76.74,76.726,13.51325064]
[1771936798165,5.21496095,76.74,76.727,0.4798591]
[1771936799038,0.46410308,76.749,76.727,0.4798591]
[1771936799557,0.46410308,76.749,76.676,5.36086188]
[1771936799558,0.23315988,76.739,76.705,0.4798591]
[1771936799758,0.28432314,76.746,76.705,0.4798591]
[1771936799759,5.21496095,76.72,76.705,0.4798591]
[1771936800063,0.23315988,76.729,76.706,0.4798591]
[1771936800448,5.21496095,76.73,76.706,0.4798591]
[1771936800653,5.21496095,76.72,76.706,0.4798591]
[1771936800849,0.23315988,76.719,76.692,0.4798591]
[1771936801061,0.23315988,76.744,76.685,0.4798591]
[1771936801248,0.23315988,76.744,76.681,13.04104015]
[1771936801249,5.21496095,76.73,76.691,0.4798591]
[1771936801451,5.21496095,76.74,76.702,0.4798591]
[1771936801757,5.21496095,76.75,76.711,0.4798591]
[1771936802559,5.21496095,76.75,76.728,0.4798591]
[1771936802869,5.21496095,76.77,76.731,0.4798591]
[1771936803343,11.65691947,76.77,76.731,0.4798591]
[1771936803539,11.65691947,76.77,76.739,0.4798591]
[1771936803744,11.65691947,76.77,76.741,0.4798591]
[1771936804258,11.65691947,76.77,76.747,0.2]
[1771936804466,11.65691947,76.77,76.748,0.4798591]
[1771936804771,0.23315988,76.775,76.748,0.4798591]
[1771936805462,13.02490361,76.776,76.75,0.4798591]
[1771936806153,0.23315988,76.775,76.75,0.4798591]
[1771936806558,13.02490361,76.776,76.75,0.4798591]
[1771936806867,0.23315988,76.775,76.75,0.4798591]
[1771936807768,13.02524292,76.774,76.75,0.4798591]
[1771936808159,0.23315988,76.759,76.734,0.4798591]
[1771936808362,11.65691947,76.75,76.734,0.4798591]
[1771936808665,0.28432314,76.759,76.738,0.4798591]
[1771936809169,11.65691947,76.76,76.738,0.4798591]
[1771936810070,0.23315988,76.766,76.739,0.4798591]
[1771936810375,11.65691947,76.76,76.739,0.4798591]
[1771936811265,0.23315988,76.766,76.74,0.4798591]
[1771936811653,3.69383402,76.765,76.74,0.4798591]
[1771936812262,3.69383402,76.765,76.742,0.4798591]
[1771936812462,13.0262914,76.768,76.742,0.4798591]
[1771936813765,13.0262914,76.768,76.744,0.4798591]
[1771936814364,0.23315988,76.778,76.744,0.4798591]
[1771936814573,13.02504561,76.776,76.744,0.4798591]
[1771936814869,13.02504561,76.776,76.717,65.1742873]
[1771936814870,11.89007935,76.75,76.731,0.4798591]
[1771936815167,0.23315988,76.756,76.731,0.4798591]
[1771936816073,0.23315988,76.756,76.721,45.61984332]
[1771936816074,0.23315988,76.749,76.721,13.51410005]
[1771936816278,0.23315988,76.749,76.722,0.4798591]
[1771936816572,11.65691947,76.75,76.722,0.4798591]
[1771936817465,13.0284672,76.755,76.724,0.4798591]
[1771936817661,11.65691947,76.75,76.724,0.4798591]
[1771936818774,3.69383402,76.767,76.731,0.4798591]
[1771936819067,3.9269939,76.767,76.731,0.4798591]
[1771936819474,11.65691947,76.77,76.731,0.4798591]
[1771936819475,0.23315988,76.766,76.731,0.4798591]
[1771936820668,0.23315988,76.779,76.742,0.4798591]
[1771936820965,11.65691947,76.77,76.742,0.4798591]
[1771936821472,0.23315988,76.774,76.742,0.4798591]
[1771936821951,11.65691947,76.77,76.742,0.4798591]
[1771936822353,0.23315988,76.786,76.742,0.4798591]
[1771936822668,13.02269856,76.789,76.752,45.60141754]
[1771936822968,13.02269856,76.789,76.753,0.4798591]
[1771936823546,13.25528873,76.793,76.761,0.4798591]
[1771936823768,13.02212885,76.793,76.761,0.4798591]
[1771936824067,11.65691947,76.79,76.761,0.4798591]
[1771936824772,13.02212885,76.793,76.763,0.45618209]
[1771936825093,11.65691947,76.79,76.763,0.45618209]
[1771936825370,5.2189869,76.79,76.763,0.45618209]
[1771936826268,13.02212885,76.793,76.763,0.45618209]
[1771936826567,3.69383402,76.795,76.763,0.45618209]
[1771936827070,13.01981616,76.806,76.771,0.47173594]
[1771936827271,0.23315988,76.799,76.771,0.47173594]
[1771936828666,5.2189869,76.79,76.771,0.47173594]
[1771936829959,5.2189869,76.79,76.772,13.02558224]
[1771936831274,0.23315988,76.794,76.772,13.49731818]
[1771936831773,0.23315988,76.794,76.773,0.47173594]
[1771936831973,13.02100287,76.799,76.775,0.47173594]
[1771936833057,13.25416275,76.799,76.775,0.47173594]
[1771936833262,0.23315988,76.798,76.775,0.47173594]
[1771936833663,0.23315988,76.798,76.77,0.47173594]
[1771936834595,5.21872114,76.78,76.747,0.47173594]
[1771936836660,5.21872114,76.78,76.749,0.47173594]
[1771936838256,5.21872114,76.76,76.749,0.47173594]
[1771936838672,13.02643062,76.767,76.749,0.47173594]
[1771936840859,13.02609126,76.769,76.749,0.47173594]
[1771936842881,5.21872114,76.76,76.749,0.47173594]
[1771936843083,13.25925114,76.769,76.749,0.47173594]
[1771936844480,13.02609126,76.769,76.749,0.47173594]
[1771936846972,5.21872114,76.77,76.749,0.47173594]
[1771936847865,5.21872114,76.77,76.75,13.02931596]
[1771936848180,13.02609126,76.769,76.751,0.47173594]
[1771936849568,5.21872114,76.77,76.751,0.47173594]
[1771936850070,5.21872114,76.77,76.752,0.47173594]
[1771936852780,5.21872114,76.77,76.754,0.47173594]
[1771936853283,5.21872114,76.76,76.75,0.47173594]
[1771936853483,0.23315988,76.768,76.75,0.47173594]
[1771936859389,0.23315988,76.768,76.751,13.0291462]
[1771936859591,0.23315988,76.768,76.751,13.48165049]
[1771936860687,0.23315988,76.768,76.748,13.02963379]
[1771936860985,0.23315988,76.756,76.714,0.45250429]
[1771936861186,110.72330441,76.768,76.714,0.45250429]
[1771936861187,0.23315988,76.763,76.714,0.45250429]
[1771936861373,0.23315988,76.763,76.731,0.45250429]
[1771936862086,0.23315988,76.79,76.741,0.45250429]
[1771936862294,0.23315988,76.769,76.741,0.45250429]
[1771936863993,0.23315988,76.769,76.743,0.45250429]
[1771936864374,13.25940968,76.769,76.743,0.45250429]
[1771936866000,0.23315988,76.768,76.745,0.45250429]
[1771936866291,0.23315988,76.759,76.682,52.16307253]
[1771936866499,5.21872114,76.74,76.701,0.45250429]
[1771936866695,5.21872114,76.75,76.711,0.45250429]
[1771936867276,0.23315988,76.749,76.711,0.45250429]
[1771936868180,13.26278083,76.749,76.713,0.45250429]
[1771936868891,0.23315988,76.748,76.713,0.45250429]
[1771936869083,5.21872114,76.74,76.713,0.45250429]
[1771936869286,0.23315988,76.743,76.713,0.45250429]
[1771936869591,0.23315988,76.748,76.713,0.45250429]
[1771936870591,0.23315988,76.748,76.715,0.45250429]
[1771936870895,13.02962095,76.749,76.715,0.45250429]
[1771936870896,5.21872114,76.75,76.715,0.45250429]
[1771936872597,5.21872114,76.75,76.717,0.45250429]
[1771936872784,5.21872114,76.75,76.721,0.45250429]
[1771936873594,18.24804866,76.75,76.721,0.45250429]
[1771936874308,0.23315988,76.753,76.721,0.45250429]
[1771936874605,0.23315988,76.758,76.723,0.45250429]
[1771936874805,0.23315988,76.749,76.723,0.45250429]
[1771936875307,5.21872114,76.75,76.723,0.45250429]
[1771936875604,13.02778827,76.759,76.723,0.45250429]
[1771936875814,0.23315988,76.758,76.723,0.45250429]
[1771936876587,0.23315988,76.758,76.725,0.45250429]
[1771936876783,18.24638628,76.76,76.725,0.45250429]
[1771936877005,5.21872114,76.76,76.725,0.45250429]
[1771936878998,5.45188102,76.76,76.726,45.61687041]
[1771936879210,5.45188102,76.76,76.727,0.45250429]
[1771936880706,5.45188102,76.76,76.729,0.45250429]
[1771936881011,18.24467729,76.77,76.731,0.45250429]
[1771936881203,0.23315988,76.769,76.731,0.45250429]
[1771936883310,0.23315988,76.769,76.732,45.61330344]
[1771936883512,0.23315988,76.769,76.733,0.45250429]
[1771936885195,0.23315988,76.767,76.733,0.45250429]
[1771936885495,0.23315988,76.767,76.735,0.49122223]
[1771936888009,0.23315988,76.759,76.736,13.03169307]
[1771936888907,0.23315988,76.748,76.727,0.49122223]
[1771936889100,0.23315988,76.748,76.72,0.49122223]
[1771936889295,5.21872114,76.74,76.72,0.49122223]
[1771936889502,0.23315988,76.741,76.72,0.49122223]
[1771936891510,0.23315988,76.741,76.722,0.49122223]
[1771936892512,0.23315988,76.759,76.731,0.49122223]
[1771936892993,5.45188102,76.75,76.731,0.49122223]
[1771936893394,5.45769747,76.75,76.731,0.49122223]
[1771936893922,5.45769747,76.75,76.732,13.03237241]
[1771936894409,0.23315988,76.759,76.733,0.49122223]
[1771936894609,45.59377493,76.765,76.727,0.49122223]
[1771936894610,0.23315988,76.749,76.727,0.49122223]
[1771936895203,45.59377493,76.765,76.702,0.49122223]
[1771936895204,0.23315988,76.739,76.702,0.49122223]
[1771936895398,0.23315988,76.729,76.702,0.49122223]
[1771936895803,0.23315988,76.729,76.656,57.5415926]
[1771936895804,0.23315988,76.709,76.686,0.49122223]
[1771936897009,3.69383402,76.732,76.701,0.49122223]
[1771936897010,0.23315988,76.73,76.701,0.49122223]
[1771936897318,5.22453759,76.73,76.701,0.49122223]
[1771936897510,0.23315988,76.729,76.701,0.49122223]
[1771936898520,32.577956,76.74,76.702,13.03746968]
[1771936898521,0.23315988,76.719,76.702,13.03746968]